bitfinex-derivatives/quotes_BNBF0:USTF0_20250315
["timestamp","ask_amount","ask_price","bid_price","bid_amount"]
[1742009203448,0.776,593.2,592.75,0.646]
[1742009203643,0.776,593.2,592.76,0.33740468]
[1742009203842,0.776,593.2,592.76,1.04440468]
[1742009206150,0.776,593.2,592.77,0.834]
[1742009206351,0.776,593.2,592.78,0.33739329]
[1742009209154,0.776,593.2,592.79,0.30822606]
[1742009209355,0.776,593.2,592.79,0.64561366]
[1742009209656,2.37717214,594.67,592.8,0.30822606]
[1742009209950,0.33633229,594.65,592.8,0.30822606]
[1742009210155,0.30967694,594.64,592.8,0.30822606]
[1742009210454,2.57889874,594.37,592.8,0.30822606]
[1742009210755,0.33650206,594.35,592.8,0.30822606]
[1742009210958,0.30967694,594.34,592.8,0.30822606]
[1742009211154,0.33651904,594.32,592.8,0.30822606]
[1742009211454,0.30967694,594.31,592.8,0.30822606]
[1742009211655,2.91543477,594.29,592.8,0.30822606]
[1742009211859,0.33654736,594.27,592.79,0.3373876]
[1742009212155,0.30967694,594.26,592.79,0.3373876]
[1742009212352,0.33656435,594.24,592.79,0.3373876]
[1742009212660,0.30967694,594.23,592.79,0.3373876]
[1742009213358,0.33658134,594.21,592.79,0.3373876]
[1742009213556,0.30967694,594.2,592.79,0.3373876]
[1742009213755,0.33659833,594.18,592.79,0.3373876]
[1742009213959,0.30967694,594.17,592.79,0.3373876]
[1742009214153,0.33661533,594.15,592.79,0.3373876]
[1742009214351,0.30967694,594.14,592.79,0.3373876]
[1742009214552,0.33662666,594.13,592.79,0.3373876]
[1742009214755,0.30967694,594.12,592.79,0.3373876]
[1742009214957,0.33663799,594.11,592.79,0.3373876]
[1742009215153,0.30967694,594.1,592.79,0.3373876]
[1742009215354,0.33664932,594.09,592.79,0.3373876]
[1742009215557,0.30967694,594.08,592.79,0.3373876]
[1742009215752,0.33666633,594.06,592.79,0.3373876]
[1742009215958,0.30967694,594.05,592.79,0.3373876]
[1742009216154,0.33666633,594.06,592.79,0.3373876]
[1742009216358,0.31001105,594.05,592.79,0.947]
[1742009216558,0.33668333,594.03,592.79,0.947]
[1742009216753,0.31001105,594.02,592.79,0.947]
[1742009217058,0.33670033,594.0,592.79,0.947]
[1742009217359,0.31001105,593.99,592.79,0.947]
[1742009217560,0.33671734,593.97,592.79,0.947]
[1742009217859,0.31001105,593.96,592.79,0.947]
[1742009218060,0.33673435,593.94,592.79,0.947]
[1742009218262,0.31001105,593.93,592.79,1.584]
[1742009218461,0.33675135,593.91,592.79,1.584]
[1742009218655,0.31001105,593.9,592.79,1.584]
[1742009218860,0.33676837,593.88,592.79,1.584]
[1742009219055,0.31001105,593.87,592.79,1.584]
[1742009219258,0.33678538,593.85,592.79,1.584]
[1742009219456,0.31001105,593.84,592.79,1.584]
[1742009219659,0.33680239,593.82,592.79,1.584]
[1742009219955,0.31001105,593.81,592.79,1.584]
[1742009220159,0.33681941,593.79,592.79,1.584]
[1742009220356,0.31001105,593.78,592.79,1.584]
[1742009220560,0.33683643,593.76,592.79,1.584]
[1742009220759,0.31001105,593.75,592.79,1.584]
[1742009220957,0.33685345,593.73,592.79,1.584]
[1742009221360,0.3099993,593.72,592.79,1.584]
[1742009221562,0.33687047,593.7,592.79,1.584]
[1742009221761,0.3099993,593.69,592.79,2.521]
[1742009221962,0.33688749,593.67,592.79,2.521]
[1742009222163,0.3099998,593.66,592.79,2.521]
[1742009222358,0.33690452,593.64,592.79,2.521]
[1742009222557,0.3099998,593.63,592.79,2.521]
[1742009222763,0.33691587,593.62,592.79,2.521]
[1742009222963,0.3099998,593.61,592.79,2.521]
[1742009223162,0.33692722,593.6,592.79,2.521]
[1742009223363,0.3099998,593.59,592.79,2.521]
[1742009223665,0.33693857,593.58,592.79,2.521]
[1742009223864,0.3099998,593.57,592.79,2.521]
[1742009224065,0.33694992,593.56,592.79,2.521]
[1742009224265,0.3099998,593.55,592.79,2.521]
[1742009224465,0.33696128,593.54,592.79,2.521]
[1742009224666,0.3099998,593.53,592.79,2.521]
[1742009224865,0.33697263,593.52,592.79,2.521]
[1742009225066,0.3099998,593.51,592.79,2.521]
[1742009226666,0.29353217,593.5,592.79,2.521]
[1742009226861,0.3099998,593.49,592.79,2.521]
[1742009228370,0.193,593.48,592.79,2.521]
[1742009228765,0.30998498,593.47,592.79,2.521]
[1742009229368,0.30998498,593.47,592.79,3.821]
[1742009230265,0.30998498,593.47,592.79,4.44]
[1742009230665,0.30995254,593.46,592.79,4.44]
[1742009230867,0.30995254,593.47,592.79,4.44]
[1742009231070,0.30995254,593.46,592.79,4.44]
[1742009231270,0.193,593.48,592.79,4.44]
[1742009231271,0.30995254,593.47,592.79,4.44]
[1742009231470,0.193,593.48,592.79,4.44]
[1742009232578,0.29351484,593.47,592.79,4.44]
[1742009233579,0.30992633,593.46,592.79,4.44]
[1742009234380,0.30994534,593.45,592.79,4.44]
[1742009234578,0.30994534,593.46,592.79,4.44]
[1742009234779,0.30994534,593.45,592.79,4.44]
[1742009234975,0.30994534,593.46,592.79,4.44]
[1742009235280,0.29351484,593.47,592.79,4.44]
[1742009235281,0.30994534,593.45,592.79,4.44]
[1742009235481,0.30994534,593.46,592.79,4.44]
[1742009235675,0.60348865,593.45,592.79,4.44]
[1742009235981,0.30994534,593.44,592.79,4.44]
[1742009236774,0.29354331,593.45,592.79,4.44]
[1742009236975,0.30994349,593.44,592.79,4.44]
[1742009238076,0.29354331,593.45,592.79,4.44]
[1742009238077,0.29354331,593.45,592.79,5.077]
[1742009238380,0.89294863,593.44,592.79,5.077]
[1742009238581,0.30994863,593.43,592.79,5.077]
[1742009240182,0.30998038,593.42,592.79,5.077]
[1742009240375,0.30998038,593.43,592.79,5.077]
[1742009241884,0.30998844,593.42,592.79,5.077]
[1742009242089,0.30998844,593.41,592.79,5.077]
[1742009242289,0.87653712,593.44,592.79,5.077]
[1742009243091,0.87653712,593.44,592.79,5.937]
[1742009243389,0.30999628,593.43,592.79,5.937]
[1742009244086,0.33702942,593.42,592.79,5.937]
[1742009244286,0.31001846,593.41,592.79,5.937]
[1742009244792,0.33704078,593.4,592.79,5.937]
[1742009244992,0.31001846,593.39,592.79,5.937]
[1742009247694,0.29357922,593.38,592.79,5.937]
[1742009250498,0.33704078,593.4,592.79,5.937]
[1742009250797,0.29357922,593.37,592.79,5.937]
[1742009253404,0.33704078,593.4,592.79,5.937]
[1742009253603,0.31001768,593.39,592.79,5.937]
[1742009253801,0.29357922,593.36,592.79,5.937]
[1742009254100,0.31001768,593.35,592.79,5.937]
[1742009254402,0.29357922,593.36,592.79,5.937]
[1742009254602,0.3100152,593.35,592.79,5.937]
[1742009256703,0.3100152,593.39,592.79,5.937]
[1742009256903,0.29358417,593.34,592.79,5.937]
[1742009257204,0.3100152,593.33,592.79,5.937]
[1742009257401,0.29358417,593.34,592.79,5.937]
[1742009258705,0.31000122,593.33,592.79,5.937]
[1742009259808,0.60358787,593.32,592.79,5.937]
[1742009260002,0.31000122,593.31,592.79,5.937]
[1742009262610,0.31000122,593.32,592.79,5.937]
[1742009262809,0.29358913,593.3,592.79,5.937]
[1742009263009,0.31000122,593.29,592.79,5.937]
[1742009263808,0.29358913,593.3,592.79,5.937]
[1742009268419,0.193,593.33,592.79,5.937]
[1742009268620,0.29357922,593.29,592.79,5.937]
[1742009269921,0.583,593.28,592.79,5.937]
[1742009271918,0.29359284,593.27,592.79,5.937]
[1742009273624,0.31000799,593.26,592.79,5.937]
[1742009274627,0.29359532,593.25,592.79,5.937]
[1742009274826,0.30999834,593.24,592.79,5.937]
[1742009277734,0.2935978,593.24,592.79,5.937]
[1742009280430,0.583,593.28,592.79,5.937]
[1742009281940,0.29357922,593.3,592.79,5.937]
[1742009283545,0.193,593.33,592.79,5.937]
[1742009283743,0.29356436,593.3,592.79,5.937]
[1742009285243,0.583,593.29,592.79,5.937]
[1742009288344,0.193,593.28,592.79,5.937]
[1742009301346,0.583,593.29,592.79,5.937]
[1742009305247,0.193,593.28,592.79,5.937]
[1742009308860,0.583,593.27,592.79,5.937]
[1742009313662,0.87658665,593.27,592.79,5.937]
[1742009316373,0.583,593.27,592.79,5.937]
[1742009316770,0.87658665,593.27,592.79,5.937]
[1742009319470,0.583,593.27,592.79,5.937]
[1742009320273,0.87658665,593.27,592.79,5.937]
[1742009322480,0.583,593.27,592.79,5.937]
[1742009328485,0.193,593.26,592.79,5.937]
[1742009337686,0.584,593.25,592.79,5.937]
[1742009355302,0.194,593.24,592.79,5.937]
[1742009370228,0.584,593.23,592.79,5.937]
[1742009378329,0.194,593.22,592.79,5.937]
[1742009396148,0.584,593.21,592.79,5.937]
[1742009401057,0.778,593.21,592.79,5.937]
[1742009621020,0.77172621,593.21,592.79,5.937]
[1742009621223,0.194,593.21,592.79,5.937]
[1742009634134,0.194,593.21,592.79,5.92847202]
[1742009634333,0.194,593.21,592.79,4.99]
[1742009690180,0.30980677,593.2,592.79,4.99]
[1742009690685,0.30980677,593.2,592.05,0.29348885]
[1742009690877,0.30980677,593.2,592.06,0.64731122]
[1742009691076,0.30980677,593.2,592.07,0.64730551]
[1742009691384,0.30980677,593.2,592.05,0.29348885]
[1742009691385,0.30980677,593.19,592.08,0.64729981]
[1742009691578,0.30980677,593.25,592.09,0.6472941]
[1742009691883,0.88780735,593.24,592.1,0.64728957]
[1742009692079,0.578,593.24,592.1,0.33778078]
[1742009692285,0.578,593.24,592.11,1.3]
[1742009692885,0.30976294,593.23,592.12,2.111]
[1742009693183,0.33714304,593.22,592.12,3.715]
[1742009693378,0.33714304,593.22,592.13,1.744]
[1742009693579,0.30974054,593.21,592.13,1.744]
[1742009693980,0.33714304,593.22,592.13,1.744]
[1742009694385,0.33714304,593.22,592.14,3.851]
[1742009694682,0.194,593.21,592.14,5.555]
[1742009694886,0.48772418,593.21,592.14,5.555]
[1742009695186,0.30973217,593.2,592.14,5.555]
[1742009695383,0.48772418,593.21,592.14,5.555]
[1742009695688,0.30974117,593.2,592.14,5.555]
[1742009696584,0.3371601,593.19,592.14,5.555]
[1742009696800,0.30974117,593.18,592.14,5.555]
[1742009697089,0.33717146,593.17,592.14,5.555]
[1742009697290,0.30974117,593.16,592.14,5.555]
[1742009697588,0.33718283,593.15,592.14,5.555]
[1742009697788,0.30974117,593.14,592.14,5.555]
[1742009700491,0.63093304,593.15,592.14,5.555]
[1742009700887,0.30975746,593.14,592.14,5.555]
[1742009701088,0.30975746,593.14,592.15,0.30955515]
[1742009703288,0.63093304,593.15,592.14,5.555]
[1742009705193,0.30984051,593.14,592.14,5.555]
[1742009705387,0.30984051,593.14,592.14,4.464]
[1742009707093,0.87175021,593.13,592.14,4.464]
[1742009707288,0.30984051,593.12,592.14,4.464]
[1742009708394,0.30984051,593.12,592.15,1.091]
[1742009709499,0.87175021,593.13,592.15,1.091]
[1742009709699,0.30987441,593.12,592.15,1.091]
[1742009709900,0.29374153,593.11,592.15,1.091]
[1742009710101,0.30987441,593.1,592.15,1.091]
[1742009711800,0.30987441,593.1,592.15,2.666]
[1742009712500,0.194,593.09,592.15,2.666]
[1742009712701,0.30987441,593.08,592.15,2.666]
[1742009712895,0.194,593.09,592.15,2.666]
[1742009713097,0.30984623,593.07,592.15,2.666]
[1742009713403,0.30984623,593.06,592.15,2.666]
[1742009713604,0.30984623,593.08,592.15,2.666]
[1742009713802,0.30984623,593.07,592.15,2.666]
[1742009714102,0.30984623,593.06,592.15,2.666]
[1742009714403,0.30984623,593.05,592.15,2.666]
[1742009714602,0.30984623,593.08,592.15,2.666]
[1742009715000,0.29375145,593.04,592.15,2.666]
[1742009715602,0.194,593.09,592.15,2.666]
[1742009715902,0.3098359,593.08,592.15,2.666]
[1742009716097,0.60359479,593.08,592.15,2.666]
[1742009716301,0.3098359,593.07,592.15,2.666]
[1742009716501,0.29375889,593.08,592.15,2.666]
[1742009716702,0.30983397,593.07,592.15,2.666]
[1742009718204,0.30983397,593.07,592.15,3.966]
[1742009718600,0.29375889,593.08,592.15,5.389]
[1742009719904,0.30983984,593.07,592.15,7.248]
[1742009720104,0.29375889,593.08,592.15,7.248]
[1742009720699,0.29375889,593.08,592.15,8.95]
[1742009721598,0.194,593.09,592.15,8.95]
[1742009722003,0.29375889,593.07,592.15,8.95]
[1742009723208,0.30981429,593.06,592.15,8.95]
[1742009723712,0.29375889,593.07,592.15,8.95]
[1742009724609,0.194,593.09,592.15,8.95]
[1742009725108,0.29374153,593.07,592.15,8.95]
[1742009725305,0.194,593.09,592.15,8.95]
[1742009734616,0.578,593.13,592.15,8.95]
[1742009736018,0.33718283,593.15,592.15,8.95]
[1742009738417,0.194,593.14,592.15,8.95]
[1742009739521,0.578,593.13,592.15,8.95]
[1742009741927,0.578,593.13,592.15,10.786]
[1742009743429,0.30994541,593.12,592.15,10.786]
[1742009746123,0.578,593.13,592.15,10.786]
[1742009746328,0.30987771,593.12,592.15,10.786]
[1742009747225,0.30987771,593.12,592.15,12.711]
[1742009747830,0.578,593.13,592.15,12.711]
[1742009748129,0.29378493,593.11,592.15,12.711]
[1742009748330,0.64705852,593.1,592.15,12.711]
[1742009748526,0.6470642,593.09,592.15,12.711]
[1742009748831,0.64706989,593.08,592.15,12.711]
[1742009749032,0.30984726,593.07,592.15,12.711]
[1742009749233,0.337234,593.06,592.15,12.711]
[1742009749528,0.30984726,593.05,592.15,12.711]
[1742009749730,0.64708695,593.05,592.15,12.711]
[1742009750031,0.30984726,593.04,592.15,12.711]
[1742009751830,0.30987164,593.03,592.15,12.711]
[1742009752027,0.29377377,593.03,592.15,12.711]
[1742009752227,0.30987164,593.02,592.15,12.711]
[1742009755332,0.30986701,593.01,592.15,12.711]
[1742009755532,0.30986701,593.0,592.15,12.711]
[1742009755732,0.30986701,593.02,592.15,12.711]
[1742009758041,0.29378865,593.01,592.15,12.711]
[1742009758239,0.30986701,593.0,592.15,12.711]
[1742009760740,0.33723969,593.05,592.15,12.711]
[1742009760946,0.30984151,593.04,592.15,12.711]
[1742009761138,0.29379113,592.99,592.15,12.711]
[1742009761338,0.30984151,592.98,592.15,12.711]
[1742009763835,0.30984151,593.04,592.15,12.711]
[1742009764039,0.29378617,592.97,592.15,12.711]
[1742009764240,0.30984151,592.96,592.15,12.711]
[1742009764441,0.30984151,593.04,592.15,12.711]
[1742009766138,0.29378617,593.03,592.15,12.711]
[1742009766343,0.30984151,593.02,592.15,12.711]
[1742009766647,0.194,593.01,592.15,12.711]
[1742009766840,0.30984151,593.0,592.15,12.711]
[1742009767343,0.30986486,592.99,592.15,12.711]
[1742009767539,0.30986486,592.98,592.15,12.711]
[1742009769643,0.30987377,592.97,592.15,12.711]
[1742009769839,0.60365498,592.98,592.15,12.711]
[1742009770046,0.30987377,592.97,592.15,12.711]
[1742009770240,0.29378121,592.98,592.15,12.711]
[1742009770241,0.578,592.99,592.15,12.711]
[1742009775446,0.3099539,592.98,592.15,12.711]
[1742009776048,0.30996813,592.97,592.15,12.711]
[1742009776247,0.30996813,592.96,592.15,12.711]
[1742009776446,0.578,592.99,592.15,12.711]
[1742009776649,0.30996506,592.98,592.15,12.711]
[1742009777051,0.578,592.99,592.15,12.711]
[1742009777250,0.30996164,592.98,592.15,12.711]
[1742009780751,0.578,592.99,592.15,12.711]
[1742009792658,0.194,593.01,592.15,12.711]
[1742009792862,0.31011548,593.0,592.15,12.711]
[1742009793465,0.194,593.01,592.15,12.711]
[1742009795165,0.31010458,593.0,592.15,12.711]
[1742009795864,0.194,593.01,592.15,12.711]
[1742009796067,0.31010735,593.0,592.15,12.711]
[1742009796261,0.88810735,593.0,592.15,12.711]
[1742009796461,0.31010735,592.99,592.15,12.711]
[1742009797563,0.31010487,592.98,592.15,12.711]
[1742009797768,0.31010487,592.97,592.15,12.711]
[1742009798062,0.31010487,592.96,592.15,12.711]
[1742009798267,0.31010487,592.99,592.15,12.711]
[1742009798464,0.31010487,592.98,592.15,12.711]
[1742009798664,0.31010487,592.97,592.15,12.711]
[1742009798869,0.31010487,592.99,592.15,12.711]
[1742009799069,0.31010487,592.98,592.15,12.711]
[1742009799271,0.194,592.98,592.15,12.711]
[1742009799564,0.31010487,592.97,592.15,12.711]
[1742009801173,0.194,592.98,592.15,12.711]
[1742009801471,0.31010004,592.97,592.15,12.711]
[1742009803071,0.194,592.98,592.15,12.711]
[1742009803271,0.31010004,592.97,592.15,12.711]
[1742009805169,0.194,592.98,592.15,12.711]
[1742009827895,0.578,592.97,592.15,12.711]
[1742009831291,0.194,592.96,592.15,12.711]
[1742009834995,0.31008627,592.95,592.15,12.711]
[1742009835697,0.31008627,592.95,592.16,0.30957491]
[1742009836200,0.194,592.96,591.91,0.29372914]
[1742009836499,0.194,592.96,591.92,0.64745745]
[1742009836693,0.194,592.96,591.93,0.64745174]
[1742009836892,0.194,592.96,591.94,0.64744604]
[1742009837198,0.194,592.96,591.95,0.64744033]
[1742009837398,0.194,592.96,591.96,0.64743462]
[1742009837599,0.194,592.96,591.97,0.64742891]
[1742009837793,0.31008804,592.95,591.98,0.64742758]
[1742009837999,0.31008804,592.95,591.99,0.64742187]
[1742009838196,0.31008804,592.95,592.0,0.64741616]
[1742009838396,0.31008804,592.95,592.01,0.64741046]
[1742009838699,0.31008804,592.95,592.02,2.54240475]
[1742009838898,0.31008804,592.95,592.03,0.64739904]
[1742009839100,0.31008804,592.95,592.04,0.64739334]
[1742009839298,0.31008804,592.95,592.05,0.30957833]
[1742009839700,0.194,592.96,592.04,1.86381501]
[1742009839903,0.3100911,592.95,592.05,2.88758139]
[1742009840197,0.3100911,592.95,592.06,0.30958139]
[1742009840901,0.194,592.96,592.05,2.578]
[1742009841699,0.194,592.96,592.06,0.30957206]
[1742009845098,0.578,592.95,592.06,0.30957206]
[1742009845298,0.578,592.95,592.05,2.578]
[1742009854913,0.578,592.95,592.05,4.062]
[1742009855117,0.578,592.95,592.06,0.30958309]
[1742009856319,0.578,592.95,592.07,0.30958365]
[1742009856619,0.578,592.95,592.06,0.30958365]
[1742009856919,0.578,592.95,592.05,1.484]
[1742009857120,0.578,592.95,592.06,0.30958188]
[1742009857814,0.578,592.95,592.06,1.77358188]
[1742009858020,0.578,592.95,592.06,1.464]
[1742009858413,0.772,592.95,592.06,3.063]
[1742009858720,0.772,592.95,592.07,0.3095797]
[1742009861916,0.772,592.95,592.06,4.498]
[1742009865222,0.772,592.95,592.07,0.33779789]
[1742009867431,0.772,592.95,592.08,1.299]
[1742009867833,0.772,592.95,592.09,1.316]
[1742009868832,0.772,592.95,592.1,1.092]
[1742009876237,0.772,592.95,592.11,0.30957013]
[1742009876833,0.772,592.95,592.12,0.30956834]
[1742009877037,0.772,592.95,592.11,0.30956834]
[1742009877236,0.772,592.95,592.12,0.30956834]
[1742009877442,0.772,592.95,592.11,0.30956834]
[1742009877640,0.31007776,592.94,592.12,0.30956834]
[1742009877944,0.194,592.95,592.1,1.092]
[1742009878347,0.194,592.95,592.11,1.782]
[1742009878842,0.194,592.95,592.12,1.285]
[1742009880548,0.194,592.95,592.13,0.30955125]
[1742009880948,0.772,592.95,592.12,1.285]
[1742009881251,0.772,592.95,592.13,0.30955072]
[1742009884145,0.772,592.95,592.14,0.33775796]
[1742009888753,0.772,592.95,592.15,1.299]
[1742009890765,0.772,592.95,592.16,0.33774655]
[1742009891557,0.772,592.95,592.16,1.42974655]
[1742009893166,0.772,592.95,592.16,3.14074655]
[1742009894060,0.772,592.95,592.16,4.46474655]
[1742009894263,0.772,592.95,592.17,0.30950373]
[1742009894565,0.772,592.95,592.17,0.33774085]
[1742009894766,0.772,592.95,592.18,0.30949606]
[1742009895561,0.772,592.95,592.19,0.33772944]
[1742009895760,0.772,592.95,592.2,0.30949606]
[1742009895964,0.772,592.95,592.21,0.33771803]
[1742009898169,0.772,592.95,592.22,1.37]
[1742009901872,0.772,592.95,592.23,1.777]
[1742009907175,0.772,592.95,592.24,1.299]
[1742009907973,0.772,592.95,592.25,3.483]
[1742009915178,0.772,592.95,592.26,1.643]
[1742009916179,0.772,592.95,592.27,1.091]
[1742009924805,0.772,592.95,592.27,3.087]
[1742009925099,0.772,592.95,592.27,4.397]
[1742009930597,0.772,592.95,592.27,6.574]
[1742009933598,0.772,592.95,592.28,0.33767812]
[1742009934804,0.772,592.95,592.28,2.51067812]
[1742009935803,0.772,592.95,592.29,0.30939382]
[1742009936005,0.772,592.95,592.3,0.33766672]
[1742009936305,0.772,592.95,592.31,0.30939382]
[1742009936505,0.772,592.95,592.32,0.33765532]
[1742009936805,0.772,592.95,592.33,2.41939382]
[1742009937006,0.772,592.95,592.34,0.64703774]
[1742009937200,0.772,592.95,592.35,0.64703204]
[1742009937405,0.772,592.95,592.36,0.64702634]
[1742009937605,0.772,592.95,592.37,0.30939382]
[1742009938003,0.772,592.95,592.38,0.33762112]
[1742009938205,0.772,592.95,592.39,0.30939382]
[1742009940502,0.772,592.95,592.4,1.414]
[1742009945620,0.772,592.95,592.41,0.30935927]
[1742009947413,0.772,592.95,592.42,0.33759832]
[1742009947610,0.772,592.95,592.43,0.30935927]
[1742009947810,0.772,592.95,592.44,0.33758692]
[1742009948211,0.772,592.95,592.45,0.30935927]
[1742009948814,0.772,592.95,592.46,1.847]
[1742009949006,0.772,592.95,592.47,0.30935927]
[1742009952008,0.772,592.95,592.46,2.18457553]
[1742009957109,0.772,592.95,592.47,1.091]
[1742009964321,0.772,592.95,592.48,2.156]
[1742009964824,0.772,592.95,592.49,1.298]
[1742009965019,0.772,592.95,592.49,2.74]
[1742009965421,0.772,592.95,592.5,2.059]
[1742009969925,0.772,592.95,592.51,2.099]
[1742009970825,0.772,592.95,592.52,2.051]
[1742009971919,0.772,592.95,592.52,4.462]
[1742009980933,0.772,592.95,592.52,6.357]
[1742009986636,0.772,592.95,592.52,7.655]
[1742009989437,0.772,592.95,592.52,8.746]
[1742009992643,0.772,592.95,592.52,10.446]
[1742009993138,0.772,592.95,592.52,12.743]
[1742010000142,0.772,592.95,592.52,14.829]
[1742010060502,0.772,592.95,592.53,0.33753565]
[1742010063303,0.772,592.95,592.53,1.98653565]
[1742010063502,0.772,592.95,592.53,4.00553565]
[1742010063703,0.772,592.95,592.53,5.77353565]
[1742010064209,0.772,592.95,592.53,10.96253565]
[1742010064409,0.772,592.95,592.53,12.05453565]
[1742010064605,0.772,592.95,592.53,13.97453565]
[1742010085517,0.772,592.95,592.54,0.30926436]
[1742010085717,0.772,592.95,592.55,0.33752425]
[1742010085917,2.39463418,594.37,592.56,0.30926436]
[1742010086121,0.33650206,594.35,592.57,0.33751286]
[1742010086319,0.30977806,594.34,592.57,0.33751286]
[1742010086513,0.33651904,594.32,592.57,0.33751286]
[1742010086714,0.30977806,594.31,592.57,0.33751286]
[1742010086917,0.33653603,594.29,592.57,0.33751286]
[1742010087319,0.30976728,594.28,592.57,0.33751286]
[1742010087619,0.33655302,594.26,592.57,0.33751286]
[1742010087816,0.30976728,594.25,592.57,0.33751286]
[1742010088020,0.33657001,594.23,592.57,0.33751286]
[1742010088515,0.30977456,594.22,592.58,1.581]
[1742010088720,0.336587,594.2,592.59,0.33750147]
[1742010089220,0.30977427,594.19,592.59,0.33750147]
[1742010089419,0.336604,594.17,592.59,0.33750147]
[1742010089616,0.336604,594.17,592.6,1.297]
[1742010089821,0.88577427,594.16,592.61,0.33749008]
[1742010090021,0.6463896,594.15,592.61,0.33749008]
[1742010090321,0.64639526,594.14,592.61,0.33749008]
[1742010090523,0.64640093,594.13,592.61,0.33749008]
[1742010090722,0.33663799,594.11,592.61,0.33749008]
[1742010091118,0.3097951,594.1,592.61,0.33749008]
[1742010091323,0.33664932,594.09,592.61,0.33749008]
[1742010091524,0.3097951,594.08,592.61,0.33749008]
[1742010091720,0.33666066,594.07,592.61,0.33749008]
[1742010091926,0.3097951,594.06,592.61,0.33749008]
[1742010092126,0.33667199,594.05,592.61,0.33749008]
[1742010092326,0.3097951,594.04,592.61,0.33749008]
[1742010092526,0.33668333,594.03,592.61,0.33749008]
[1742010092827,0.3097951,594.02,592.61,0.33749008]
[1742010093218,0.33669466,594.01,592.61,0.33749008]
[1742010093421,0.3097951,594.0,592.61,0.33749008]
[1742010093721,0.64649543,594.0,592.61,0.33749008]
[1742010093922,0.3097951,593.99,592.61,0.33749008]
[1742010094327,0.60317508,593.99,592.61,0.33749008]
[1742010094529,0.29337998,593.99,592.61,0.33749008]
[1742010094721,0.30977042,593.98,592.61,0.33749008]
[1742010095127,0.30977042,593.98,592.62,2.245]
[1742010095328,0.30977042,593.98,592.63,0.33747869]
[1742010096022,0.30977042,593.98,592.64,1.091]
[1742010096228,0.30977042,593.98,592.65,0.3374673]
[1742010097129,0.60314669,593.97,592.65,0.3374673]
[1742010097328,0.30977042,593.96,592.65,0.3374673]
[1742010098730,0.30977042,593.96,592.65,2.6404673]
[1742010100332,0.60314793,593.95,592.65,2.6404673]
[1742010100526,0.30977042,593.94,592.65,2.6404673]
[1742010103035,0.30977042,593.99,592.65,2.6404673]
[1742010103235,0.2933738,593.93,592.65,2.6404673]
[1742010103432,0.30977042,593.92,592.65,2.6404673]
[1742010104237,0.30977042,593.92,592.66,0.30921883]
[1742010104430,0.30977042,593.92,592.67,0.33745591]
[1742010105236,0.2933738,593.93,592.67,0.33745591]
[1742010105837,0.33670033,594.0,592.67,0.33745591]
[1742010106240,0.29337627,593.92,592.67,0.33745591]
[1742010106440,0.33670033,594.0,592.67,0.33745591]
[1742010107937,0.33670033,594.0,592.67,2.30245591]
[1742010108140,0.29335649,593.99,592.67,2.30245591]
[1742010108441,0.63006249,593.99,592.67,2.30245591]
[1742010108642,0.193,593.98,592.67,2.30245591]
[1742010109239,0.29337504,593.97,592.67,2.30245591]
[1742010111843,0.193,593.98,592.67,2.30245591]
[1742010114040,0.30971402,593.97,592.68,0.3092044]
[1742010114239,0.60294444,593.97,592.69,0.33744453]
[1742010114440,0.30971402,593.96,592.7,0.3092044]
[1742010114744,0.30971402,593.96,592.71,0.33743314]